Cogmind - Beta 13 @@@ ROGUE MODE // 2024.03.02 @ 17:44:36 Player: Kaz Result: Destroyed by G-34 Mercenary with Small Laser Performance ------------- Evolutions (0) 0 Regions Visited (1) 200 Robots Destroyed (22) 110 Value Destroyed (523) 523 Prototype IDs (3) 60 Alien Tech Used (0) 0 Bonus (0) 0 TOTAL SCORE: 893 Bonus ------- None Cogmind --------- Core Integrity 0/250 Matter 267/300 Energy 250/250 System Corruption 0% Temperature Cool (6) Movement Rolling (155) Ox5 Location -10/Materials Parts ------- > --- POWER (1) -------- Ion Engine > --- PROPULSION (2) --- Wheel > --- UTILITY (2) ------ Medium Storage Unit High-capacity Storage Unit > --- WEAPON (2) ------- Light Assault Rifle Light Assault Rifle > --- INVENTORY (20) --- Light Ion Engine Aluminum Leg Aluminum Leg Aluminum Leg Small Storage Unit Medium Storage Unit Large Storage Unit High-capacity Storage Unit High-capacity Storage Unit Medium Matter Pod (100) Particle Cannon Assault Rifle Light Assault Rifle Peak State ------------ > --- POWER ------------ Light Ion Engine > --- PROPULSION ------- Wheel Wheel > --- UTILITY ---------- Medium Storage Unit High-capacity Storage Unit > --- WEAPON ----------- Light Assault Rifle Light Assault Rifle > --- INVENTORY -------- Aluminum Leg Aluminum Leg Flight Unit Flight Unit Small Storage Unit Medium Storage Unit Large Storage Unit Medium Matter Pod Particle Cannon [Rating: 8] Favorites ----------- Power Light Ion Engine Engine Light Ion Engine Propulsion Wheel Wheel Wheel Flight Unit Flight Unit Utility Propulsion Shielding Storage Small Storage Unit Protection Propulsion Shielding Weapon Assault Rifle Energy Cannon Particle Cannon Ballistic Gun Assault Rifle Build | -11 -10 ------- Run | Yrd Mat Slots Evolved . | . . Power . | . . Propulsion . | . . Utility . | . . Weapon . | . . Parts Attached 21 | 6 15 Power 4 | 1 3 Engine 4 | 1 3 Core . | . . Reactor . | . . Propulsion 6 | 2 4 Treads . | . . Leg . | . . Wheel 4 | 2 2 Hover . | . . Flight 2 | . 2 Utility 5 | 1 4 Device . | . . Storage 4 | 1 3 Processor . | . . Hackware . | . . Protection 1 | . 1 Artifact . | . . Weapon 6 | 2 4 Energy Gun . | . . Energy Cannon 1 | . 1 Ballistic Gun 5 | 2 3 Ballistic Cannon . | . . Launcher . | . . Special Weapon . | . . Impact Weapon . | . . Slashing Weapon . | . . Piercing Weapon . | . . Special Melee Weapon . | . . Unidentified Prototypes . | . . Parts Lost 6 | . 6 Power 1 | . 1 Propulsion 2 | . 2 Utility 1 | . 1 Weapon 2 | . 2 Highest Loss Streak 2 | . 2 To Critical Strikes . | . . Average Slot Usage (%) 92 | . 92 Engine 12 | . 12 Wheel 16 | . 16 Flight 10 | . 10 Storage 16 | . 16 Protection 10 | . 10 Ballistic Gun 24 | . 24 Naked Turns . | . . Heaviest Build 57 | 12 57 Greatest Support 20 | 20 20 Greatest Overweight (x) 5 | 2 5 Average Overweight (x) . | . . Largest Inventory Capacity 20 | 8 20 Average Capacity 10 | 7 11 Most Carried 13 | . 13 Average Carried 6 | . 6 Final Capacity 20 | 8 20 Final Carried 13 | . 13 Class Distribution -------------------- 83% | Mutant 16% | Scavenger-Mutant Dominant Class ---------------- Mutant | -10/Materials Resources | -11 -10 ----------- Run | Yrd Mat Matter Collected 818 | 255 563 Remotely . | . . Salvage Created 715 | . 715 Parts 50 | . 50 Haulers Intercepted 1 | . 1 Recyclers Shooed . | . . Parts Field Recycled . | . . Retrieved Matter . | . . Parts Self-Destructed . | . . Prevented . | . . Kills | -11 -10 ------- Run | Yrd Mat Combat Hostiles Destroyed 16 | . 16 Guns 15 | . 15 Cannons 1 | . 1 Classes Destroyed 6 | . 6 Builder 1 | . 1 Tunneler 1 | . 1 Hauler 1 | . 1 Watcher 3 | . 3 Swarmer 4 | . 4 Grunt 12 | . 12 Best Kill Streak 3 | . 3 Combat Bots Only 2 | . 2 Max Kills in Single Turn 1 | . 1 Gunslinging . | . . Exploded . | . . Melee . | . . Uniques/NPCs Destroyed . | . . Combat | -11 -10 -------- Run | Yrd Mat Hostile Shots Fired 110 | . 110 Missed 22 | . 22 Damage Taken 934 | . 934 Core 255 | . 255 Absorbed by Shields . | . . Redirected to Shielding 52 | . 52 Core Remaining (%) 100 | 100 . Volleys Fired 89 | . 89 Largest 2 | . 2 Hottest 88 | . 88 Shots Fired 153 | . 153 Gun 149 | . 149 Cannon 4 | . 4 Launcher . | . . Special . | . . Kinetic 149 | . 149 Thermal 4 | . 4 Explosive . | . . Electromagnetic . | . . Robot Hit Streak 8 | . 8 Robot Miss Streak 4 | . 4 Penetration Max . | . . Secondary Targets 2 | . 2 Max Gunslinging Chain 1 | . 1 Shots Hit Robots 93 | . 93 Core Hits 40 | . 40 Critical Kills 1 | . 1 Critical Parts Destroyed . | . . Critical Strikes 1 | . 1 Destroy 1 | . 1 Melee Attacks . | . . Impact . | . . Slashing . | . . Piercing . | . . Sneak Attacks . | . . Combat Hostiles . | . . Follow-up Attacks . | . . Damage Inflicted 1173 | . 1173 Guns 1110 | . 1110 Cannons 62 | . 62 Explosions . | . . Melee . | . . Ramming 1 | . 1 Kinetic 1110 | . 1110 Thermal 62 | . 62 Explosive . | . . Electromagnetic . | . . Impact . | . . Slashing . | . . Piercing . | . . Highest Corruption . | . . Average Corruption . | . . Corruption Purged . | . . Corruption Blocked . | . . Overload Shots . | . . Overflow Damage . | . . Projectiles . | . . Explosions . | . . Melee . | . . Knockbacks . | . . Impact . | . . Kinetic . | . . Secondary . | . . Self-Inflicted Damage . | . . Shots . | . . Rammed 2 | . 2 Targets Rammed 2 | . 2 Kicked . | . . Crushed . | . . Highest Temperature 90 | . 90 Average Temperature 16 | . 16 Received Heat Transfer 420 | . 420 Siege Activations . | . . Robots Corrupted . | . . Combat Hostiles . | . . Parts Fried . | . . Impact Corruptions . | . . Robots Melted . | . . Combat Hostiles . | . . Parts Melted . | . . Heat Transferred 111 | . 111 Parts Sabotaged . | . . Parts Stolen . | . . Parts Stripped . | . . Power Chain Reactions . | . . Alert | -11 -10 ------- Run | Yrd Mat Peak Influence 275 | . 275 Initial . | . . Average 144 | . 149 Maximum Alert Level 1 | . 1 Low Security (%) 65 | 100 64 Level 1 34 | . 35 Level 2 . | . . Level 3 . | . . Level 4 . | . . Level 5 . | . . High Security . | . . Max Security . | . . Squads Dispatched 6 | . 6 Investigation 4 | . 4 Extermination . | . . Reinforcement 2 | . 2 Assault . | . . Garrison . | . . Intercept . | . . Searches Triggered . | . . Construction Impeded . | . . Haulers Reinforced . | . . Active Scanning Responses . | . . Cargo Convoy Interrupts . | . . Stealth | -11 -10 --------- Run | Yrd Mat Distress Signals 1 | . 1 Communications Jammed . | . . Distress Signals . | . . Times Spotted 29 | . 29 Peak Tracking Total 4 | . 4 Tactical Retreats 2 | . 2 Traps | -11 -10 ------- Run | Yrd Mat Traps Triggered . | . . Indirectly . | . . Trap Hack Attempts . | . . Triggered . | . . Disarmed 4 | . 4 Reprogrammed . | . . Reused . | . . Traps Extracted . | . . Installed . | . . Triggered . | . . Machines | -11 -10 ---------- Run | Yrd Mat Machines Disabled . | . . Max in Single Turn . | . . Machines Repaired . | . . Machines Dismantled . | . . Machines Sabotaged . | . . Overloaded Fab Kills . | . . Hacking | -11 -10 --------- Run | Yrd Mat Machines Accessed 4 | . 4 Terminals 4 | . 4 Fabricators . | . . Repair Stations . | . . Recycling Units . | . . Scanalyzers . | . . Garrison Access . | . . Total Hacks 16 | . 16 Successful 11 | . 11 Failed 5 | . 5 Catastrophic 1 | . 1 Database Lockouts . | . . Manual . | . . Terminals 16 | . 16 Fabricators . | . . Repair Stations . | . . Recycling Units . | . . Scanalyzers . | . . Garrison Access . | . . Terminal Hacks 11 | . 11 Record 3 | . 3 Prototype ID Bank 2 | . 2 Emergency Access Points 1 | . 1 Locate Traps 1 | . 1 Disarm Traps 1 | . 1 Dispatch Records 1 | . 1 Maintenance Status 1 | . 1 Transport Status 1 | . 1 Fabricator Hacks . | . . Repair Station Hacks . | . . Recycling Unit Hacks . | . . Scanalyzer . | . . Garrison Access Hacks . | . . Unauthorized Hacks . | . . Terminals . | . . Fabricators . | . . Repair Stations . | . . Recycling Units . | . . Scanalyzers . | . . Garrison Access . | . . Data Cores Recovered . | . . Used . | . . Hacking Detections 4 | . 4 Full Trace Events 4 | . 4 Feedback Events . | . . Feedback Blocked . | . . Robot Schematics Acquired . | . . Robots Built . | . . Authchips . | . . Time . | . . Total Robot Build Rating . | . . Part Schematics Acquired . | . . Parts Built . | . . Authchips . | . . Time . | . . Total Part Build Rating . | . . Parts Repaired . | . . Time . | . . Parts Recycled . | . . Recycled Matter . | . . Retrieved Matter . | . . Retrieved Components . | . . Parts Scanalyzed . | . . Part Schematics Acquired . | . . Parts Damaged . | . . Bothacking | -11 -10 ------------ Run | Yrd Mat Used RIF Installer . | . . Robots Hacked . | . . Non-combat . | . . Combat . | . . Robot Hacks Applied . | . . Relay Couplers Released . | . . Fabnet Peak Effective % . | . . Robots Rewired . | . . Allies Hacked . | . . Hacks Repelled . | . . Allies | -11 -10 -------- Run | Yrd Mat Total Allies . | . . Largest Group . | . . Highest-Rated Group . | . . Highest-Rated Ally . | . . Total Orders . | . . Ally Attacks . | . . Total Damage . | . . Kills . | . . Allies Corrupted . | . . Allies Melted . | . . Intel | -11 -10 ------- Run | Yrd Mat Robot Analysis Total . | . . Derelict Logs Recovered . | . . Drone Launches . | . . Drone Recoveries . | . . Exploration | -11 -10 ------------- Run | Yrd Mat Turns Passed 917 | 33 884 Spaces Moved 538 | 27 511 Core 9 | 9 . Treads . | . . Legs . | . . Wheels 371 | 18 353 Hover . | . . Flight 158 | . 158 Fastest Speed 50 | 50 80 Average Speed 109 | 88 110 Slowest Speed 360 | 150 360 Overloaded Moves . | . . Propulsion Burnouts . | . . Robots Hopped . | . . Cave-ins Triggered . | . . Exploration Rate (%) 52 | 4 77 Regions Visited 1 Branch Regions . Pre-discovered Areas . | . . Known Exits Taken . | . . Unknown Exits Taken 1 | 1 . Scrap Searched . | . . Spaces Dug . | . . Terrain Destroyed . | . . Melee . | . . Projectile . | . . AOE . | . . Terrain Rammed . | . . Walls Destroyed . | . . Machines Disabled . | . . Actions | -11 -10 --------- Run | Yrd Mat Total 716 | 32 684 Wait 41 | . 41 Move 537 | 26 511 Hop . | . . Pick Up 19 | . 19 Fast Attach 10 | 6 4 Attach 2 | . 2 Detach . | . . Swap 9 | . 9 Drop 7 | . 7 Fire 89 | . 89 Melee . | . . Ram 2 | . 2 Kick . | . . Crush . | . . Escape Stasis . | . . Rewire . | . . Trap . | . . Miscellaneous . | . . Route ------- -11/Scrapyard -10/Materials (discovered 4 exits: [*Mat x2] / [*Min x2]) History --------- Turn | Location | Event 19 | -11/Scrapyard | Discovered new exit (range 16) 34 | -11/Scrapyard | Entered Materials 66 | -10/Materials | Discovered new exit (range 6) 272 | -10/Materials | Discovered new exit (range 10) 333 | -10/Materials | Build established: Mutant 390 | -10/Materials | Core integrity fell below 50% 792 | -10/Materials | Discovered new exit (range 16) 814 | -10/Materials | Discovered new exit (range 15) 901 | -10/Materials | Core integrity fell below 20% 918 | -10/Materials | Destroyed by G-34 Mercenary with Small Laser Last Messages --------------- 00744_ Acquired Aluminum Leg. 00750_ K-01 Serf collects debris. 00752_ Acquired 10 matter. 00754_ K-01 Serf collects debris. 00763_ K-01 Serf cleans the Terminal. 00764_ Dropped Flight Unit. 00768_ K-01 Serf cleans the Terminal. 00792_ EXIT=FOUND 00818_ O-16 Technician: "IFF HANDSHAKE FAILED. SECURING TERMINAL." 00826_ ALERT: Hostiles spotted, dispatching reinforcements to Terminal M004. 00828_ Acquired Assault Rifle. 00854_ Slammed into O-16 Technician. 00871_ Dropped Lgt. Ion Engine. 00899_ S-10 Pest destroyed. 00899_ Switching to secondary target: G-34 Mercenary. 00902_ Wheel destroyed. 00904_ S-10 Pest destroyed. 00906_ Switching to secondary target: G-34 Mercenary. 00912_ Acquired Lgt. Assault Rifle. Map ----- +----------------------------------------------------+ | ## # = + """ #???????? | | ## + ## """ #???????? | | ## # ##T###### ##"" """ #???????? | | ## # ####????# ##"Y #???????? | | ############# #???????# ##"" #???????? | | % #??????## ## #??###??? | | #??????# ###+############T#### | | #??????# | | ######################?# < | | #????# #?# | | #????# """ #?# ###+#############+### | | " """ #????# """"" #?####### ?????# | | " """ #????# """"" #???????# ???# | | " """ #????# """"" #???????# #?# | | #????# """! #???????# !!! #?# | | "T" #????# #???????# !! #?# | | =[""" #????# ! = #######?# !! #?# | | +###############+##### ### #?# | | = + #########+## | | [ #?# ## "T" # + | | #?########### # # | | "####T######## # #???????????# ! # / | | T#??###??????# ##u ##???????????#! /# # | | "#???????????# !!||## [################+### # | | #???????????#]]!!||##g=%% % # | | #???????????######### =@** # | | ###???????????????????# =% r # | | ########??????????????# ############+####### # | | ################ #????????# #?## # | | ## #????????# #?# | | ## #????????# ## | | ! + #????????# ## | | ##########+############ #????????# * ## < | | ?????# % #??????# #????????#* * ## | | ?????# #??????# #????????#########"" " | | ?????# #??????# #????????????????##"!!!" | | ?????# """ """ #??????#####?????????????????##"""# | | ?????# """ """ #?????????????????????????????##### | | ?????# """ """ #?????????????????????????????????? | | ?????# #?????????????????????????????????? | | ?????# #?????????????????????????????????? | | ??????##########?????????????????????????????????? | | ?????????????????????????????????????????????????? | | ?????????????????????????????????????????????????? | | ?????????????????????????????????????????????????? | | | | | | | | | | | +----------------------------------------------------+ Best States ------------- Heat Dissipation 25 Energy Generation 10 Energy Capacity 250 Matter Stores 300 Matter Capacity 300 Sight Range 16 Terrain Scan Density 10 Propulsion Shielding 33 Evasion (%) 44 Item Schematics ----------------- None Robot Schematics ------------------ None Fabricated ------------ Nothing Alien Tech Used ----------------- None Achievements -------------- None Challenges ------------ None Game ------ Seed PoweredIntegrityArchive Manual? 0 Play Time 00:12:10 Cumulative 136.8 hours Start 2024.03.02 @ 16:12:32 End 2024.03.02 @ 17:44:36 Sessions 3 Manual Loads 0 Difficulty Rogue Special Mode None Game No. 82 Rogue 70 Adventurer 12 Explorer 0 Win Type - Total 1 Types 1/0/0/0/0/0/0/0/0 Lore% 19 Gallery% 36 Achievement% 29 Wizard Run 0 Options --------- Layout 1 ASCII 0 Keyboard 0 Movement Mouse Keybinds 0 Fullscreen 1 Font 32/SmallcapsGlow Map View 77x35 Zoom Use 0% Tactical HUD 1 Map Filters NONE Filters NONE Steam 1 RUN: d1b6c5e2-02ee-41c2-b153-3dbaa54fe617